Cogmind - Beta 17.1 @@@ ROGUE MODE // 2026.09.14 @ 23:22:31 Player: Firely Result: Destroyed by B-75 Beast with Heavy Plasma Cannon Performance ------------- Evolutions (5) 2500 Regions Visited (9) 1800 Robots Destroyed (115) 575 Value Destroyed (3178) 3178 Prototype IDs (6) 120 Alien Tech Used (0) 0 Bonus (345) 345 TOTAL SCORE: 8518 Bonus ------- High Alert Combat Kills 300 Follower Combat Kills 45 Cogmind --------- Core Integrity 0/1000 Matter 288/300 Energy 96/100 System Corruption 1% Temperature Cool (26) Movement Hovering (70) Location -5/Extension Parts ------- > --- POWER (1) -------- (None) > --- PROPULSION (5) --- Gyrokinetic Inverter > --- UTILITY (9) ------ Visual Processing Unit Signal Interpreter Improved Hacking Suite > --- WEAPON (2) ------- (None) > --- INVENTORY (5) ---- Wheel Assault Cannon Peak State ------------ > --- POWER ------------ Light Nuclear Core > --- PROPULSION ------- Gyrokinetic Inverter Linear Gravjet Xenon Bombardment Thruster Nuclear Pulse Thruster > --- UTILITY ---------- Advanced Heat Sink Improved Trap Scanner Visual Processing Unit Signal Interpreter Hacking Suite Hacking Suite Improved Hacking Suite Improved Hacking Suite Advanced Hacking Suite > --- WEAPON ----------- Great Maul > --- INVENTORY -------- Light Nuclear Core Wheel Assault Cannon Advanced Assault Cannon [Rating: 63] Favorites ----------- Power Improved Ion Engine Engine Improved Ion Engine Power Core Light Nuclear Core Propulsion Light Treads Treads Light Treads Hover Unit Gyrokinetic Inverter Flight Unit VTOL Module Utility Hacking Suite Device Heat Sink Storage Large Storage Unit Processor Signal Interpreter Hackware Hacking Suite Weapon Ion Cannon Energy Gun Medium Laser Energy Cannon Ion Cannon Ballistic Cannon Advanced Assault Cannon Launcher Mini Grenade Launcher Impact Weapon Great Maul Special Melee Weapon Improved Datajack Build | -11 -10 -9 -8 -7 -7 -7 -6 -5 -5 ------- Run | Yrd Mat Mat Mat Fac Low Low Fac Fac Ext Slots Evolved 10 | . . 2 2 2 . . 2 2 . Power . | . . . . . . . . . . Propulsion 3 | . . . . 2 . . . 1 . Utility 7 | . . 2 2 . . . 2 1 . Weapon . | . . . . . . . . . . Parts Attached 80 | 5 10 24 9 11 3 . 8 4 6 Power 11 | 1 1 4 1 . 2 . 1 . 1 Engine 5 | 1 1 3 . . . . . . . Core 6 | . . 1 1 . 2 . 1 . 1 Reactor . | . . . . . . . . . . Propulsion 29 | 2 1 9 2 6 1 . 3 2 3 Treads 14 | 2 1 9 2 . . . . . . Leg . | . . . . . . . . . . Wheel . | . . . . . . . . . . Hover 4 | . . . . . . . 1 2 1 Flight 11 | . . . . 6 1 . 2 . 2 Utility 22 | 1 3 7 3 2 . . 4 2 . Device 7 | . 1 2 2 . . . 2 . . Storage 4 | 1 2 1 . . . . . . . Processor 5 | . . 3 . 2 . . . . . Hackware 6 | . . 1 1 . . . 2 2 . Protection . | . . . . . . . . . . Artifact . | . . . . . . . . . . Weapon 18 | 1 5 4 3 3 . . . . 2 Energy Gun 6 | 1 3 . 2 . . . . . . Energy Cannon 5 | . 2 3 . . . . . . . Ballistic Gun . | . . . . . . . . . . Ballistic Cannon 2 | . . . . 2 . . . . . Launcher 2 | . . 1 . 1 . . . . . Special Weapon . | . . . . . . . . . . Impact Weapon 2 | . . . 1 . . . . . 1 Slashing Weapon . | . . . . . . . . . . Piercing Weapon . | . . . . . . . . . . Special Melee Weapon 1 | . . . . . . . . . 1 Unidentified Prototypes 1 | . . . 1 . . . . . . Parts Lost 34 | . . 2 4 . 2 . 8 3 15 Power 5 | . . 1 . . 1 . 1 . 2 Propulsion 12 | . . 1 . . 1 . 4 1 5 Utility 8 | . . . . . . . 2 1 5 Weapon 9 | . . . 4 . . . 1 1 3 Highest Loss Streak 10 | . . 1 1 . 2 . 6 2 10 To Critical Strikes 1 | . . . . . . . . 1 . Average Backups 11 | 3 11 14 14 5 5 5 4 4 2 Power 1 | . 1 1 1 . 1 1 1 1 . Propulsion 2 | 2 2 2 6 1 1 1 1 1 1 Utility 4 | . 4 6 4 1 1 1 . . . Weapon 3 | . 3 4 2 2 2 2 1 1 1 Tool/Special . | . . . . . . . . . . Unused Backups 20 | . 7 5 1 4 . . 2 . 1 Power 1 | . . . . 1 . . . . . Propulsion 4 | . 2 . . 1 . . . . 1 Utility 10 | . 3 4 1 1 . . 1 . . Weapon 5 | . 2 1 . 1 . . 1 . . Tool/Special . | . . . . . . . . . . Average Slot Usage (%) 96 | . 96 99 99 98 99 100 91 75 61 Engine 8 | . 13 10 3 . . . . . . Core 1 | . . . 5 7 7 7 5 5 4 Treads 19 | . 27 21 18 . . . . . . Flight 3 | . . . . 28 29 30 18 9 3 Device 9 | . 11 10 8 7 7 7 12 8 . Storage 9 | . 14 11 9 . . . . . . Processor 10 | . . 11 18 22 23 23 15 11 11 Hackware 10 | . . 11 18 15 15 15 22 28 23 Energy Gun 8 | . 21 1 13 . . . . . . Energy Cannon 10 | . 5 20 3 . . . . . . Peak Build Rating 63 | 5 9 19 32 39 39 39 52 63 57 Average Rating 20 | 3 7 17 28 34 38 39 45 51 43 On Entrance 26 | . 5 8 19 28 39 39 39 35 55 Avg Prop Armor Cover (%) 5 | . . . . . . . 5 3 5 Naked Turns . | . . . . . . . . . . Heaviest Build 40 | 12 32 40 40 30 13 13 20 19 13 Greatest Support 42 | 40 40 40 42 42 20 20 20 20 22 Greatest Overweight (x) 3 | 3 1 1 . . . . 1 1 . Average Overweight (x) . | . . . . . . . . . . Largest Inventory Capacity 15 | 8 15 15 15 15 5 5 5 5 5 Average Capacity 12 | 7 13 15 15 5 5 5 5 5 5 Most Carried 15 | 7 15 15 15 15 5 5 5 5 4 Average Carried 11 | 4 11 14 14 5 5 5 4 4 2 Final Capacity 15 | 8 15 15 15 5 5 5 5 5 5 Final Carried 15 | 7 15 15 15 5 5 5 5 4 2 Class Distribution -------------------- 55% | Scavenger-Mutant 27% | Mutant 9% | Hacker-Mutant 6% | Hacker-Sprinter Dominant Class ---------------- Mutant | -10/Materials Scavenger-Mutant | -9/Materials Scavenger-Mutant | -8/Materials Hacker-Sprinter | -7/Factory Scavenger-Sprinter | -7/Lower Caves Hacker-Sprinter | -7/Lower Caves Hacker-Sprinter | -6/Factory Hacker-Mutant | -5/Factory Hacker-Mutant | -5/Extension Resources | -11 -10 -9 -8 -7 -7 -7 -6 -5 -5 ----------- Run | Yrd Mat Mat Mat Fac Low Low Fac Fac Ext Matter Collected 1806 | 243 507 547 75 31 197 4 67 135 . Remotely . | . . . . . . . . . . Salvage Created 3833 | . 539 2536 310 64 118 . 175 73 18 Parts 214 | . 36 137 14 7 2 . 15 . 3 Haulers Intercepted 7 | . 2 5 . . . . . . . Recyclers Shooed 3 | . 3 . . . . . . . . Parts Field Recycled . | . . . . . . . . . . Retrieved Matter . | . . . . . . . . . . Parts Self-Destructed 2 | . . . . . 2 . . . . Prevented . | . . . . . . . . . . Parts Restored . | . . . . . . . . . . Kills | -11 -10 -9 -8 -7 -7 -7 -6 -5 -5 ------- Run | Yrd Mat Mat Mat Fac Low Low Fac Fac Ext Combat Hostiles Destroyed 86 | . 12 47 5 7 3 . 11 1 . Melee 2 | . . . 1 . . . . 1 . Guns 10 | . 9 . 1 . . . . . . Cannons 50 | . 3 41 2 1 . . 3 . . AOE 21 | . . 4 . 6 3 . 8 . . Classes Destroyed 12 | . 5 4 1 . . . 1 1 . Worker 1 | . . . 1 . . . . . . Builder 4 | . . . . . . . 1 2 1 Hauler 7 | . 2 5 . . . . . . . Recycler 3 | . . 3 . . . . . . . Mechanic 2 | . . 2 . . . . . . . Operator 6 | . 2 4 . . . . . . . Watcher 6 | . 2 3 1 . . . . . . Swarmer 32 | . 6 8 . 7 3 . 8 . . Grunt 42 | . 6 29 4 . . . 3 . . Brawler 1 | . . 1 . . . . . . . Sentry 10 | . . 9 1 . . . . . . Programmer 1 | . . . . . . . . 1 . Packrat 1 | . . . . . 1 . . . . Best Kill Streak 11 | . 6 10 3 4 3 . 11 1 1 Combat Bots Only 11 | . 3 9 3 4 3 . 11 1 . Max Kills in Single Turn 3 | . 1 3 1 2 3 . 2 1 1 Gunslinging . | . . . . . . . . . . Exploded 3 | . . 2 . 2 3 . 2 . . Melee 1 | . . . 1 . . . . 1 . Uniques/NPCs Destroyed . | . . . . . . . . . . Combat | -11 -10 -9 -8 -7 -7 -7 -6 -5 -5 -------- Run | Yrd Mat Mat Mat Fac Low Low Fac Fac Ext Hostile Shots Fired 485 | . 56 155 41 45 2 . 60 25 101 Missed 172 | . 18 37 14 28 . . 22 16 37 Hits 313 | . 38 118 27 17 2 . 38 9 64 Projectile 313 | . 38 118 27 17 2 . 38 9 64 Critical Strikes 4 | . . 2 . . . . . 2 . Damage Taken 4775 | . 398 1398 419 185 29 . 562 277 1507 Core 1505 | . 38 185 59 44 . . 169 67 943 Absorbed by Shields . | . . . . . . . . . . Regen/Repaired (Parts) 19 | . . 19 . . . . . . . Core Remaining (%) 83 | 100 84 53 89 . . 93 80 . . Volleys Fired 236 | . 55 135 19 8 2 . 16 1 . Largest 2 | . 2 2 2 1 1 . 1 1 . Hottest 130 | . 120 120 130 37 30 . 40 40 . Shots Fired 437 | . 107 265 38 8 2 . 16 1 . Gun 148 | . 99 32 17 . . . . . . Cannon 268 | . 8 230 21 2 . . 6 1 . Launcher 21 | . . 3 . 6 2 . 10 . . Special . | . . . . . . . . . . Kinetic 9 | . . . . 2 . . 6 1 . Thermal 407 | . 107 262 38 . . . . . . Explosive 21 | . . 3 . 6 2 . 10 . . Electromagnetic . | . . . . . . . . . . Robot Hit Streak 40 | . 7 40 5 3 . . 4 . . Robot Miss Streak 5 | . 3 3 5 1 . . 2 . . Penetration Max . | . . . . . . . . . . Secondary Targets . | . . . . . . . . . . Shots Hit Robots 292 | . 71 178 26 4 . . 6 6 1 Core Hits 160 | . 34 73 11 11 4 . 26 . 1 Critical Kills 2 | . . 1 . . . . 1 . . Critical Parts Destroyed 5 | . . . 1 . . . . 4 . Critical Strikes 13 | . 6 1 1 . . . 1 4 . Burn 6 | . 6 . . . . . . . . Meltdown 1 | . . 1 . . . . . . . Smash 6 | . . . 1 . . . 1 4 . Melee Attacks 33 | . . . 5 . . . 10 13 5 Impact 33 | . . . 5 . . . 10 13 5 Slashing . | . . . . . . . . . . Piercing . | . . . . . . . . . . Sneak Attacks 4 | . . . . . . . 1 2 1 Combat Hostiles . | . . . . . . . . . . Follow-up Attacks . | . . . . . . . . . . Damage Inflicted 8227 | . 892 4027 667 592 248 . 1355 348 98 Guns 1265 | . 839 209 217 . . . . . . Cannons 4002 | . 53 3612 229 21 . . 87 . . Explosions 2168 | . . 204 . 571 248 . 1145 . . Melee 779 | . . . 221 . . . 114 348 96 Ramming 13 | . . 2 . . . . 9 . 2 Kinetic 108 | . . . . 21 . . 87 . . Thermal 5481 | . 892 3821 446 . . . 322 . . Explosive 1846 | . . 204 . 571 248 . 823 . . Electromagnetic . | . . . . . . . . . . Impact 779 | . . . 221 . . . 114 348 96 Slashing . | . . . . . . . . . . Piercing . | . . . . . . . . . . Highest Corruption 1 | . . . . . . . . . 1 Average Corruption 1 | . . . . . . . . . 1 Corruption Purged . | . . . . . . . . . . Corruption Blocked . | . . . . . . . . . . Overload Shots . | . . . . . . . . . . Overflow Damage 438 | . . 57 53 29 1 . 12 286 . Projectiles 43 | . . 43 . . . . . . . Explosions 56 | . . 14 . 29 1 . 12 . . Melee 339 | . . . 53 . . . . 286 . Knockbacks 4 | . . . 3 . . . . 1 . Impact 4 | . . . 3 . . . . 1 . Kinetic . | . . . . . . . . . . Secondary . | . . . . . . . . . . Self-Inflicted Damage 16 | . . . . 11 . . 4 . 1 Shots 1 | . . . . 1 . . . . . Rammed 4 | . . 2 . . . . 1 . 1 Targets Rammed 4 | . . 2 . . . . 1 . 1 Kicked . | . . . . . . . . . . Crushed . | . . . . . . . . . . Highest Temperature 288 | . 288 196 72 . . . . . 3 Average Temperature 47 | . 52 48 27 . . . . . 3 Received Heat Transfer 1227 | . 123 603 207 42 . . 54 18 180 Siege Activations . | . . . . . . . . . . Martial Activations . | . . . . . . . . . . Shielding Activations . | . . . . . . . . . . Robots Disrupted . | . . . . . . . . . . Combat Hostiles . | . . . . . . . . . . Robots Corrupted 2 | . . . 1 . . . . 1 . Combat Hostiles 1 | . . . 1 . . . . . . Parts Fried 8 | . . . . . . . . 8 . Impact Corruptions 11 | . . . 1 . . . . 10 . Robots Melted 2 | . . 2 . . . . . . . Combat Hostiles 2 | . . 2 . . . . . . . Parts Melted 25 | . 8 16 1 . . . . . . Heat Transferred 10400 | . 3002 6421 777 . . . 200 . . Parts Sabotaged . | . . . . . . . . . . Parts Stolen . | . . . . . . . . . . Parts Stripped . | . . . . . . . . . . Power Chain Reactions . | . . . . . . . . . . Alert | -11 -10 -9 -8 -7 -7 -7 -6 -5 -5 ------- Run | Yrd Mat Mat Mat Fac Low Low Fac Fac Ext Maximum Alert Level 3 | . . 3 2 1 . . 1 . . Low Security (%) 66 | 100 100 54 18 74 . . 46 100 100 Level 1 13 | . . 3 69 25 . . 53 . . Level 2 6 | . . 11 11 . . . . . . Level 3 13 | . . 30 . . . . . . . Level 4 . | . . . . . . . . . . Level 5 . | . . . . . . . . . . High Security . | . . . . . . . . . . Max Security . | . . . . . . . . . . Peak Influence 981 | . 84 981 414 224 . . 343 126 118 Initial 406 | . . 26 406 58 . . 39 126 2 Average 225 | . 12 381 297 145 . . 168 43 22 Influence Increases 3048 | . 349 1578 137 206 70 . 474 91 143 Destroy 0b10 Robot/C 1740 | . 240 940 100 140 60 . 220 20 20 Destroy 0b10 Robot/NC 145 | . 30 85 10 . . . 5 10 5 Destroy Leader 396 | . 58 236 22 20 10 . 30 10 10 Allied During Kill 8 | . . . . . . . . . 8 Successful Hack 18 | . 5 7 . . . . . 2 4 Disable Machine 135 | . . 90 . . . . 45 . . Destroy Structure 141 | . 1 40 5 31 . . 54 4 6 Partial Spotted 60 | . . 45 . 15 . . . . . Lose Combat Pursuer 405 | . 15 135 . . . . 120 45 90 Influence Decreases 3048 | . 287 676 972 161 166 15 279 342 150 Entered New Map 907 | . . 36 558 71 66 15 24 132 5 Time Decay 1724 | . 287 620 374 90 80 . 146 97 30 Lost Part 235 | . . 20 40 . 20 . 80 20 55 Lost Ally 60 | . . . . . . . . . 60 Purge Threat 122 | . . . . . . . 29 93 . Squads Dispatched 18 | . 3 11 . . . . 1 2 1 Investigation 4 | . 1 2 . . . . . 1 . Extermination 2 | . . . . . . . 1 1 . Reinforcement 7 | . 2 4 . . . . . . 1 Assault 5 | . . 5 . . . . . . . Garrison . | . . . . . . . . . . Intercept . | . . . . . . . . . . Searches Triggered . | . . . . . . . . . . Construction Impeded . | . . . . . . . . . . Haulers Reinforced . | . . . . . . . . . . Active Scanning Responses . | . . . . . . . . . . Cargo Convoy Interrupts . | . . . . . . . . . . Stealth | -11 -10 -9 -8 -7 -7 -7 -6 -5 -5 --------- Run | Yrd Mat Mat Mat Fac Low Low Fac Fac Ext Distress Signals 5 | . 2 . 1 . . . 1 . 1 Communications Jammed . | . . . . . . . . . . Distress Signals . | . . . . . . . . . . Times Spotted 170 | . 20 80 14 7 3 . 22 7 17 Peak Tracking Total 9 | . 4 8 5 3 3 . 7 5 9 Tactical Retreats 15 | . 1 6 . . . . 5 1 2 Traps | -11 -10 -9 -8 -7 -7 -7 -6 -5 -5 ------- Run | Yrd Mat Mat Mat Fac Low Low Fac Fac Ext Traps Triggered 6 | . 2 2 . . . . . 1 1 Indirectly . | . . . . . . . . . . Trap Hack Attempts . | . . . . . . . . . . Triggered . | . . . . . . . . . . Disarmed . | . . . . . . . . . . Reprogrammed . | . . . . . . . . . . Reused . | . . . . . . . . . . Traps Extracted . | . . . . . . . . . . Installed . | . . . . . . . . . . Triggered . | . . . . . . . . . . Machines | -11 -10 -9 -8 -7 -7 -7 -6 -5 -5 ---------- Run | Yrd Mat Mat Mat Fac Low Low Fac Fac Ext Machines Disabled 9 | . . 6 . . . . 3 . . Max in Single Turn 3 | . . 1 . . . . 3 . . Garrison Access 1 | . . . . . . . . 1 . Machines Repaired . | . . . . . . . . . . Machines Dismantled . | . . . . . . . . . . Machines Sabotaged . | . . . . . . . . . . Overloaded Fab Kills . | . . . . . . . . . . Hacking | -11 -10 -9 -8 -7 -7 -7 -6 -5 -5 --------- Run | Yrd Mat Mat Mat Fac Low Low Fac Fac Ext Machines Accessed 28 | . 5 6 2 1 3 . 2 5 4 Terminals 20 | . 5 4 2 1 . . 2 2 4 Fabricators . | . . . . . . . . . . Repair Stations 1 | . . 1 . . . . . . . Recycling Units 1 | . . . . . . . . 1 . Scanalyzers 2 | . . 1 . . . . . 1 . Garrison Access 1 | . . . . . . . . 1 . Total Hacks 58 | . 10 13 4 1 8 . 5 10 7 Successful 42 | . 4 10 2 1 8 . 2 9 6 Failed 16 | . 6 3 2 . . . 3 1 1 Catastrophic . | . . . . . . . . . . Database Lockouts . | . . . . . . . . . . Manual . | . . . . . . . . . . Terminals 41 | . 10 9 4 1 . . 5 5 7 Fabricators . | . . . . . . . . . . Repair Stations 2 | . . 2 . . . . . . . Recycling Units 2 | . . . . . . . . 2 . Scanalyzers 3 | . . 2 . . . . . 1 . Garrison Access 2 | . . . . . . . . 2 . Terminal Hacks 34 | . 4 6 2 1 8 . 2 5 6 Record 11 | . . 1 2 . 6 . . . 2 Prototype ID Bank 2 | . 1 . . . . . . 1 . Open Door 4 | . . . . . 2 . . . 2 Level Access Points 1 | . . . . . . . 1 . . Emergency Access Points 1 | . . . . . . . . 1 . Scanalyzer Index 1 | . . 1 . . . . . . . Alert Level 3 | . . 1 . . . . . 1 1 Unreport Threat 2 | . . . . . . . 1 1 . Locate Traps 3 | . 1 . . 1 . . . 1 . Hauler Manifests 2 | . 1 1 . . . . . . . Registered Components 1 | . . . . . . . . . 1 Zone Layout 3 | . 1 2 . . . . . . . Fabricator Hacks . | . . . . . . . . . . Repair Station Hacks 2 | . . 2 . . . . . . . Scan Component 1 | . . 1 . . . . . . . Repair 1 | . . 1 . . . . . . . Recycling Unit Hacks 2 | . . . . . . . . 2 . Process 1 | . . . . . . . . 1 . Retrieve Matter 1 | . . . . . . . . 1 . Scanalyzer 3 | . . 2 . . . . . 1 . Insert Component 1 | . . 1 . . . . . . . Retrieve Study 2 | . . 1 . . . . . 1 . Garrison Access Hacks 1 | . . . . . . . . 1 . Seal Access 1 | . . . . . . . . 1 . Unauthorized Hacks . | . . . . . . . . . . Terminals . | . . . . . . . . . . Fabricators . | . . . . . . . . . . Repair Stations . | . . . . . . . . . . Recycling Units . | . . . . . . . . . . Scanalyzers . | . . . . . . . . . . Garrison Access . | . . . . . . . . . . Data Cores Recovered . | . . . . . . . . . . Used . | . . . . . . . . . . Hacking Detections 19 | . 5 3 2 . . . 2 4 3 Full Trace Events 1 | . . . . . . . . 1 . Feedback Events . | . . . . . . . . . . Feedback Blocked . | . . . . . . . . . . Robot Schematics Acquired . | . . . . . . . . . . Robots Built . | . . . . . . . . . . Authchips . | . . . . . . . . . . Time . | . . . . . . . . . . Total Robot Build Rating . | . . . . . . . . . . Part Schematics Acquired . | . . . . . . . . . . Parts Built . | . . . . . . . . . . Authchips . | . . . . . . . . . . Time . | . . . . . . . . . . Total Part Build Rating . | . . . . . . . . . . Part Studies Acquired 1 | . . . . . . . . 1 . Parts Repaired 1 | . . 1 . . . . . . . Time 26 | . . 26 . . . . . . . Parts Recycled . | . . . . . . . . . . Recycled Matter 25 | . . . . . . . . 25 . Retrieved Matter 25 | . . . . . . . . 25 . Retrieved Components . | . . . . . . . . . . Parts Scanalyzed . | . . . . . . . . . . Part Schematics Acquired . | . . . . . . . . . . Parts Damaged . | . . . . . . . . . . Bothacking | -11 -10 -9 -8 -7 -7 -7 -6 -5 -5 ------------ Run | Yrd Mat Mat Mat Fac Low Low Fac Fac Ext Used RIF Installer . | . . . . . . . . . . Robots Hacked . | . . . . . . . . . . Non-combat . | . . . . . . . . . . Combat . | . . . . . . . . . . Robot Hacks Applied . | . . . . . . . . . . Relay Couplers Released . | . . . . . . . . . . Fabnet Peak Effective % . | . . . . . . . . . . Robots Rewired . | . . . . . . . . . . Allies Hacked . | . . . . . . . . . . Hacks Repelled . | . . . . . . . . . . Allies | -11 -10 -9 -8 -7 -7 -7 -6 -5 -5 -------- Run | Yrd Mat Mat Mat Fac Low Low Fac Fac Ext Total Allies 6 | . . . . . 3 . . . 3 Largest Group 3 | . . . . . 3 3 . . 3 Highest-Rated Group 76 | . . . . . 60 60 . . 76 Highest-Rated Ally 31 | . . . . . 20 20 . . 31 Total Orders . | . . . . . . . . . . Ally Attacks 5 | . . . . . . . . . 5 Total Damage 175 | . . . . . . . . . 175 Kills 1 | . . . . . . . . . 1 Allies Corrupted . | . . . . . . . . . . Allies Melted . | . . . . . . . . . . Intel | -11 -10 -9 -8 -7 -7 -7 -6 -5 -5 ------- Run | Yrd Mat Mat Mat Fac Low Low Fac Fac Ext Active Infowar (turns) 1304 | . . . . 177 179 16 410 349 173 Optics 1304 | . . . . 177 179 16 410 349 173 Structural 259 | . . . . . . . 259 . . Traps 504 | . . . . . . . 162 342 . Robot Analysis Total . | . . . . . . . . . . Derelict Logs Recovered 4 | . . . . . 2 2 . . . Drone Launches . | . . . . . . . . . . Drone Recoveries . | . . . . . . . . . . Exploration | -11 -10 -9 -8 -7 -7 -7 -6 -5 -5 ------------- Run | Yrd Mat Mat Mat Fac Low Low Fac Fac Ext Turns Passed 7446 | 79 1939 3246 864 191 179 16 410 349 173 Spaces Moved 5624 | 40 1032 1486 495 547 452 55 727 578 212 Core 15 | 15 . . . . . . . . . Treads 3042 | 25 1032 1486 495 4 . . . . . Legs . | . . . . . . . . . . Wheels . | . . . . . . . . . . Hover 585 | . . . . . . . 226 164 195 Flight 1982 | . . . . 543 452 55 501 414 17 Fastest Speed 26 | 50 160 160 152 26 28 28 28 37 45 Average Speed 103 | 163 160 160 155 27 28 28 39 41 60 Slowest Speed 240 | 200 240 240 160 152 32 28 120 110 70 Overloaded Moves . | . . . . . . . . . . Propulsion Burnouts . | . . . . . . . . . . Robots Hopped 1 | . . . . . . . . . 1 Potential Cave-ins . | . . . . . . . . . . Cave-ins Triggered . | . . . . . . . . . . Exploration Rate (%) 36 | 4 95 84 31 12 65 11 11 10 43 Regions Visited 9 Branch Regions 3 Pre-discovered Areas 3 | . . . . . 3 . . . . Known Exits Taken 7 | . . 1 1 1 1 1 1 1 . Unknown Exits Taken 2 | 1 1 . . . . . . . . Scrap Searched 2 | . . . . . 2 . . . . Spaces Dug 15 | . . . . . . . 9 2 4 Terrain Destroyed 143 | . . 29 5 35 17 . 51 2 4 Melee 15 | . . . . . . . 9 2 4 Projectile 23 | . . 16 5 . . . 2 . . AOE 105 | . . 13 . 35 17 . 40 . . Terrain Rammed . | . . . . . . . . . . Walls Destroyed . | . . . . . . . . . . Machines Disabled . | . . . . . . . . . . Actions | -11 -10 -9 -8 -7 -7 -7 -6 -5 -5 --------- Run | Yrd Mat Mat Mat Fac Low Low Fac Fac Ext Total 6759 | 51 1219 2095 540 583 500 54 813 658 246 Wait 621 | . 74 380 2 . 43 . 41 59 22 Move 5613 | 39 1031 1485 494 546 451 54 726 577 210 Hop 1 | . . . . . . . . . 1 Pick Up 53 | 7 17 15 6 2 . . 3 2 1 Fast Attach 33 | 5 8 3 1 2 2 . 6 3 3 Attach 24 | . 1 5 4 5 . . 3 3 3 Detach 7 | . 3 . . 2 . . 2 . . Swap 72 | . 16 44 5 5 1 . 1 . . Drop 62 | . 14 26 4 13 1 . 4 . . Fire 236 | . 55 135 19 8 2 . 16 1 . Melee 33 | . . . 5 . . . 10 13 5 Ram 2 | . . . . . . . 1 . 1 Kick . | . . . . . . . . . . Crush 2 | . . 2 . . . . . . . Escape Stasis . | . . . . . . . . . . Rewire . | . . . . . . . . . . Trap . | . . . . . . . . . . Miscellaneous . | . . . . . . . . . . Route ------- -11/Scrapyard -10/Materials (discovered 6 exits: *Mat x3 / [*Min x2] / [*Sub]) -9/Materials (discovered 5 exits: *Mat x2 / [*Min] / [*Sto x2]) -8/Materials -7/Factory -7/Lower Caves -7/Lower Caves -6/Factory (discovered 4 exits: *Fac x4) -5/Factory (discovered 3 exits: [*Fac] / Upp / *Ext) -5/Extension History --------- Turn | Location | Event 51 | -11/Scrapyard | Discovered new exit (range 15) 80 | -11/Scrapyard | Entered Materials 81 | -10/Materials | Met a group of wandering Federalists 308 | -10/Materials | Build established: Mutant 371 | -10/Materials | Discovered new exit (range 10) 612 | -10/Materials | Discovered new exit (range 6) 625 | -10/Materials | Discovered new exit (range 9) 990 | -10/Materials | Discovered new exit (range 14) 1307 | -10/Materials | Discovered new exit (range 16) 1451 | -10/Materials | Discovered new exit (range 8) 2019 | -10/Materials | Entered another Materials area 2019 | -9/Materials | Evolved 2 slots: Utility x2 2321 | -9/Materials | Build established: Scavenger-Mutant 2681 | -9/Materials | Repaired Salvaging Laser 2708 | -9/Materials | Discovered new exit (range 8) 2956 | -9/Materials | Discovered new exit (range 9) 3385 | -9/Materials | Discovered new exit (range 14) 3805 | -9/Materials | Discovered new exit (range 10) 3963 | -9/Materials | Destroyed 9 combat bots 4019 | -9/Materials | First assault squad dispatched 4507 | -9/Materials | Discovered new exit (range 16) 5011 | -9/Materials | Identified exit to Materials 5265 | -9/Materials | Entered another Materials area 5265 | -8/Materials | Evolved 2 slots: Utility x2 5777 | -8/Materials | Discovered new exit (range 3) 5778 | -8/Materials | Identified exit to Factory 6129 | -8/Materials | Entered Factory 6129 | -7/Factory | Evolved 2 slots: Propulsion x2 6241 | -7/Factory | Discovered new exit (range 14) 6245 | -7/Factory | Identified exit to Lower Caves 6320 | -7/Factory | Entered Lower Caves 6411 | -7/Lower Caves | Entered an active Warlord outpost 6413 | -7/Lower Caves | Identified exit to Lower Caves 6415 | -7/Lower Caves | A Commander dispatched an escort 6416 | -7/Lower Caves | Learned location of Armory (-3) 6416 | -7/Lower Caves | Learned location of 1 exit from Research 6416 | -7/Lower Caves | Learned Armory terminal intel 6435 | -7/Lower Caves | Learned location of Zion (-6) 6499 | -7/Lower Caves | Entered another Lower Caves area 6499 | -7/Lower Caves | Accompanied by 3 allies 6500 | -7/Lower Caves | Commander's escort returned to base 6500 | -7/Lower Caves | Commander's escort returned to base 6500 | -7/Lower Caves | Commander's escort returned to base 6507 | -7/Lower Caves | Learned 4 Factory zone layouts 6509 | -7/Lower Caves | Discovered new exit (range 15) 6513 | -7/Lower Caves | Identified exit to Factory 6515 | -7/Lower Caves | Entered Factory 6515 | -6/Factory | Evolved 2 slots: Utility x2 6749 | -6/Factory | Lost 6 parts (1p3n1u1w) 6752 | -6/Factory | Destroyed 11 combat bots 6849 | -6/Factory | Identified exit to Factory 6925 | -6/Factory | Entered another Factory area 6925 | -5/Factory | Evolved 2 slots: Propulsion x1, Utility x1 6926 | -5/Factory | Identified exit to Upper Caves 7215 | -5/Factory | Build established: Hacker-Mutant 7226 | -5/Factory | Discovered new exit (range 14) 7239 | -5/Factory | Discovered new exit (range 15) 7246 | -5/Factory | Identified exit to Extension 7274 | -5/Factory | Entered Extension 7354 | -5/Extension | Lost 10 parts (1p3n3u3w) 7383 | -5/Extension | Rescued a captive Derelict 7395 | -5/Extension | Spotted B-75 Beast 7396 | -5/Extension | Rescued a captive Derelict 7398 | -5/Extension | Rescued a captive Derelict 7433 | -5/Extension | Spotted B-75 Beast 7437 | -5/Extension | Core integrity fell below 50% 7445 | -5/Extension | Core integrity fell below 20% 7447 | -5/Extension | Destroyed by B-75 Beast with Heavy Plasma Cannon Last Messages --------------- Slug penetrates Machine. Penetrated by Slug. Adv. Hacking Suite destroyed. Penetrated by Slug. Field Propulsion Drive destroyed. Machine disabled. Penetrated by Slug. Imp. Hacking Suite destroyed. Penetrated by Slug. Powered Hammer destroyed. Penetrated by Slug. Hacking Suite destroyed. Knocked back. Penetrated by Slug. Gyrokinetic Inverter destroyed. Slug penetrates Wall. Penetrated by Slug. Door Terminal disabled. Knocked back. Penetrated by Slug. Map ----- +----------------------------------------------------+ | #?????????????????????????????????? | | ######## #?????????????????????????????????? | | ???????# #?????????????????????????????????? | | ???????# #?????????????????????????????????? | | ???????####### #?????????????????????????????????? | | ?????????????# #???????????!?????????????????????? | | ???????????###=#?????????????????????????????????? | | ?????????###T#%##????????????????????????????????? | | ?????????# !!###??????? ???????????????????????? | | ?????????# # " #??????? ???????????????????????? | | ?????????### # ###??????? ???????????????????????? | | ???????????### #????????? #??????????????????????? | | ?????????????#%#????????? #??????????????????????? | | ?????????????#h########?? #??????????????????????? | | ???????????### ;#; ## ### ###????????????????????? | | ???????????#"" "/! "" ""#????????????????????? | | ???????????# =!% " " #????????????????????? | | ???????????#%[%* g #????????????????????? | | ??????????## !! BB #????????????????????? | | ###########; BB #############????????? | | % h ????????? | | Y Y ???????? | | ???????? | | BB ????????? | | R hBB uk u R ?????????????? | | ############ t @ ##???????????????????? | | ???????????# #????????????????????? | | ???????????# %#????????????????????? | | ???????????# #????????????????????? | | ???????????# % % #????????????????????? | | ??????????#;###;# #"""#######????????????????????? | | ??????????##??#?###??????????????????????????????? | | ?????????????????????????????????????????????????? | | | | | | | | | | | | | | | | | | | | | | | | | | | | | | | | | | | +----------------------------------------------------+ Best States ------------- Heat Dissipation 59 Energy Generation 14 Energy Capacity 265 Matter Stores 300 Matter Capacity 300 Sight Range 18 Terrain Scan Density 10 Evasion (%) 64 Targeting Accuracy 8 Recoil Reduction 2 Offensive Hacking 58 Item Schematics ----------------- None Robot Schematics ------------------ None Fabricated ------------ Nothing Repaired ---------- Salvaging Laser | 62% | -9/Materials Studied --------- Xenon Bombardment Thruster | -5/Factory | Hacked Alien Tech Used ----------------- None Achievements -------------- None Challenges ------------ None Game ------ Seed HellfireVoltaicRecalibrator Manual? 0 Play Time 02:16:55 Cumulative 46.8 hours Start 2026.09.14 @ 19:38:14 End 2026.09.14 @ 23:22:31 Sessions 3 Manual Loads 0 Difficulty Rogue Special Mode None Game No. 25 Rogue 25 Adventurer 0 Explorer 0 Win Type - Total 0 Types 0/0/0/0/0/0/0/0/0/0 Lore% 34 Gallery% 22 Achievement% 22 Wizard Run 0 Options --------- Layout 1 ASCII 0 Keyboard 0 Movement Numpad Keybinds 0 Fullscreen 1 Font 32/SmallcapsGlow Map View 50x40 Zoom Use 0% Tactical HUD 0 Map Filters NONE Filters NONE Steam 1 RUN: 7afb80bd-bdd8-466b-9041-f656dbfa5d56